[Event "Late-Titled-Tuesday-Blitz-April-23-2024"]
[Site "Chess.com"]
[Date "2024.04.23"]
[Round "6"]
[White "dolynachess"]
[Black "Hakiki_satranc"]
[Result "1/2-1/2"]
[WhiteElo "2537"]
[BlackElo "2397"]
[TimeControl "180+1"]
[EndTime "15:11:34 PDT"]
[Termination "Game drawn - insufficient material"]

1. d4 {[%clk 0:03:00.9]} 1... d5 {[%clk 0:02:58.2]} 2. c4 {[%clk 0:03:00.8]}
2... e6 {[%clk 0:02:59.1]} 3. Nf3 {[%clk 0:03:00.7]} 3... Bb4+ {[%clk
0:02:59.2]} 4. Nbd2 {[%clk 0:03:00.2]} 4... Nf6 {[%clk 0:02:58]} 5. g3 {[%clk
0:02:59.9]} 5... O-O {[%clk 0:02:56.2]} 6. Bg2 {[%clk 0:03:00]} 6... c5 {[%clk
0:02:55.7]} 7. O-O {[%clk 0:02:58]} 7... cxd4 {[%clk 0:02:55.9]} 8. Nxd4 {[%clk
0:02:53.8]} 8... Nc6 {[%clk 0:02:53.8]} 9. Nc2 {[%clk 0:02:49.4]} 9... Be7
{[%clk 0:02:52.9]} 10. cxd5 {[%clk 0:02:44]} 10... Nxd5 {[%clk 0:02:42.4]} 11.
Nc4 {[%clk 0:02:43.6]} 11... Bf6 {[%clk 0:02:36.4]} 12. N2e3 {[%clk 0:02:41.6]}
12... Nb6 {[%clk 0:01:51.4]} 13. Nxb6 {[%clk 0:01:58.7]} 13... Qxd1 {[%clk
0:01:45.1]} 14. Rxd1 {[%clk 0:01:57.8]} 14... axb6 {[%clk 0:01:46]} 15. Nc4
{[%clk 0:01:54.9]} 15... b5 {[%clk 0:01:29.8]} 16. Nb6 {[%clk 0:01:51.9]} 16...
Ra6 {[%clk 0:01:30.3]} 17. Nxc8 {[%clk 0:01:51.3]} 17... Rxc8 {[%clk 0:01:31.1]}
18. Rd7 {[%clk 0:01:30.5]} 18... Nb4 {[%clk 0:01:10]} 19. Bxb7 {[%clk
0:00:59.5]} 19... Rxa2 {[%clk 0:01:09.7]} 20. Rb1 {[%clk 0:00:59.2]} 20... Rd8
{[%clk 0:01:04.1]} 21. Rxd8+ {[%clk 0:00:56.7]} 21... Bxd8 {[%clk 0:01:05]} 22.
Bd2 {[%clk 0:00:56]} 22... Nd5 {[%clk 0:00:57.6]} 23. Bxd5 {[%clk 0:00:51.7]}
23... exd5 {[%clk 0:00:57]} 24. Bc3 {[%clk 0:00:52.6]} 24... Bf6 {[%clk
0:00:46.5]} 25. Kf1 {[%clk 0:00:42.2]} 25... d4 {[%clk 0:00:39.9]} 26. Bb4
{[%clk 0:00:41]} 26... d3 {[%clk 0:00:36.8]} 27. Ba3 {[%clk 0:00:14]} 27...
dxe2+ {[%clk 0:00:30]} 28. Kxe2 {[%clk 0:00:14.9]} 28... h5 {[%clk 0:00:25.6]}
29. Kd3 {[%clk 0:00:11.2]} 29... b4 {[%clk 0:00:24.8]} 30. Bxb4 {[%clk 0:00:10]}
30... Bxb2 {[%clk 0:00:24.1]} 31. Bd2 {[%clk 0:00:06.8]} 31... Bf6 {[%clk
0:00:22.5]} 32. h3 {[%clk 0:00:06.4]} 32... Kh7 {[%clk 0:00:21.7]} 33. Rb7
{[%clk 0:00:04.9]} 33... Kg6 {[%clk 0:00:22.1]} 34. Rb6 {[%clk 0:00:05.4]} 34...
Ra3+ {[%clk 0:00:21.4]} 35. Ke2 {[%clk 0:00:05.2]} 35... h4 {[%clk 0:00:19.1]}
36. g4 {[%clk 0:00:04]} 36... Kh7 {[%clk 0:00:14]} 37. Be3 {[%clk 0:00:03.7]}
37... Ra2+ {[%clk 0:00:13.1]} 38. Kf3 {[%clk 0:00:04.1]} 38... Ra3 {[%clk
0:00:13]} 39. Kg2 {[%clk 0:00:05]} 39... Be5 {[%clk 0:00:10.8]} 40. Kf3 {[%clk
0:00:04.4]} 40... f6 {[%clk 0:00:11]} 41. Rc6 {[%clk 0:00:03.5]} 41... Ra1
{[%clk 0:00:10.3]} 42. Rc5 {[%clk 0:00:03.3]} 42... Ra3 {[%clk 0:00:09.9]} 43.
Kg2 {[%clk 0:00:03.5]} 43... Kg6 {[%clk 0:00:08.8]} 44. Kf3 {[%clk 0:00:03.6]}
44... Bd4 {[%clk 0:00:08.9]} 45. Rd5 {[%clk 0:00:03.5]} 45... Bxe3 {[%clk
0:00:08.9]} 46. fxe3 {[%clk 0:00:04.4]} 46... Ra2 {[%clk 0:00:09.6]} 47. Rh5
{[%clk 0:00:04.5]} 47... Ra1 {[%clk 0:00:04.5]} 48. Rxh4 {[%clk 0:00:05.4]}
48... Rf1+ {[%clk 0:00:04.8]} 49. Kg2 {[%clk 0:00:05.8]} 49... Re1 {[%clk
0:00:05]} 50. Kf2 {[%clk 0:00:06.7]} 50... Rb1 {[%clk 0:00:04.9]} 51. Rh5 {[%clk
0:00:07.2]} 51... Rb2+ {[%clk 0:00:04.5]} 52. Kf3 {[%clk 0:00:08.1]} 52... Rh2
{[%clk 0:00:04.2]} 53. Rh8 {[%clk 0:00:08.3]} 53... Rh1 {[%clk 0:00:04.2]} 54.
Ke4 {[%clk 0:00:08.4]} 54... Rh2 {[%clk 0:00:03.8]} 55. Rh5 {[%clk 0:00:08.1]}
55... Rh1 {[%clk 0:00:04.3]} 56. Kd3 {[%clk 0:00:08]} 56... Rh2 {[%clk
0:00:04.9]} 57. Kd4 {[%clk 0:00:08.7]} 57... Rh1 {[%clk 0:00:05.4]} 58. e4
{[%clk 0:00:09.2]} 58... Rh2 {[%clk 0:00:05.8]} 59. Ke3 {[%clk 0:00:09.7]} 59...
Rh1 {[%clk 0:00:05.9]} 60. Kf3 {[%clk 0:00:10.6]} 60... Rf1+ {[%clk 0:00:06.1]}
61. Kg2 {[%clk 0:00:10.5]} 61... Re1 {[%clk 0:00:06.6]} 62. Kf3 {[%clk 0:00:11]}
62... Rf1+ {[%clk 0:00:06.9]} 63. Ke2 {[%clk 0:00:11.4]} 63... Rh1 {[%clk
0:00:07.3]} 64. Ke3 {[%clk 0:00:11.8]} 64... Rh2 {[%clk 0:00:07.6]} 65. e5
{[%clk 0:00:11.6]} 65... fxe5 {[%clk 0:00:06.7]} 66. Ke4 {[%clk 0:00:12]} 66...
Re2+ {[%clk 0:00:05.9]} 67. Kf3 {[%clk 0:00:12.4]} 67... Rh2 {[%clk 0:00:05.3]}
68. Kg3 {[%clk 0:00:10.9]} 68... Re2 {[%clk 0:00:05.8]} 69. Kf3 {[%clk
0:00:11.8]} 69... Rh2 {[%clk 0:00:05.4]} 70. Rh8 {[%clk 0:00:12.3]} 70... Rh1
{[%clk 0:00:04.1]} 71. Ke4 {[%clk 0:00:12]} 71... Re1+ {[%clk 0:00:03]} 72. Kd3
{[%clk 0:00:12.3]} 72... Rh1 {[%clk 0:00:02.3]} 73. Ke3 {[%clk 0:00:11.6]} 73...
Re1+ {[%clk 0:00:01.8]} 74. Kf2 {[%clk 0:00:11.1]} 74... Rh1 {[%clk 0:00:02.7]}
75. Rh5 {[%clk 0:00:11.1]} 75... Ra1 {[%clk 0:00:03]} 76. Rxe5 {[%clk
0:00:10.4]} 76... Ra2+ {[%clk 0:00:03.9]} 77. Kg3 {[%clk 0:00:10.7]} 77... Ra3+
{[%clk 0:00:04.4]} 78. Kh4 {[%clk 0:00:11]} 78... Rb3 {[%clk 0:00:04.8]} 79.
Re6+ {[%clk 0:00:11.1]} 79... Kh7 {[%clk 0:00:05]} 80. Re2 {[%clk 0:00:10]}
80... Rb5 {[%clk 0:00:05.4]} 81. Rf2 {[%clk 0:00:08.4]} 81... Rc5 {[%clk
0:00:05.9]} 82. Rf5 {[%clk 0:00:08]} 82... Rc4 {[%clk 0:00:06.5]} 83. Kg5 {[%clk
0:00:07.3]} 83... Rc3 {[%clk 0:00:06.4]} 84. h4 {[%clk 0:00:07.8]} 84... Rc6
{[%clk 0:00:06.9]} 85. h5 {[%clk 0:00:08.1]} 85... Rc4 {[%clk 0:00:07]} 86. Re5
{[%clk 0:00:08]} 86... Rb4 {[%clk 0:00:07]} 87. Rf5 {[%clk 0:00:08.2]} 87... Rc4
{[%clk 0:00:07.3]} 88. Rf4 {[%clk 0:00:08.3]} 88... Rc5+ {[%clk 0:00:07.3]} 89.
Kh4 {[%clk 0:00:08.7]} 89... Rc3 {[%clk 0:00:07.6]} 90. g5 {[%clk 0:00:08.9]}
90... Rc1 {[%clk 0:00:06.9]} 91. Rf8 {[%clk 0:00:07.4]} 91... Rc4+ {[%clk
0:00:06.2]} 92. Kg3 {[%clk 0:00:07.3]} 92... Rc3+ {[%clk 0:00:06.9]} 93. Kf4
{[%clk 0:00:07.6]} 93... Rc4+ {[%clk 0:00:06.9]} 94. Ke3 {[%clk 0:00:07.9]}
94... Rc5 {[%clk 0:00:04.8]} 95. g6+ {[%clk 0:00:06.5]} 95... Kh6 {[%clk
0:00:04.7]} 96. Rh8+ {[%clk 0:00:07.2]} 96... Kg5 {[%clk 0:00:05.1]} 97. Rh7
{[%clk 0:00:07.2]} 97... Rc7 {[%clk 0:00:05.2]} 98. Ke4 {[%clk 0:00:07.1]} 98...
Re7+ {[%clk 0:00:04.8]} 99. Kd5 {[%clk 0:00:07.3]} 99... Kf6 {[%clk 0:00:05.6]}
100. Kd6 {[%clk 0:00:07.6]} 100... Re6+ {[%clk 0:00:05.8]} 101. Kd7 {[%clk
0:00:07.3]} 101... Re7+ {[%clk 0:00:06.5]} 102. Kd8 {[%clk 0:00:08]} 102... Ra7
{[%clk 0:00:06]} 103. Ke8 {[%clk 0:00:05.5]} 103... Ke6 {[%clk 0:00:05]} 104.
Kf8 {[%clk 0:00:04.9]} 104... Kf6 {[%clk 0:00:04.6]} 105. Ke8 {[%clk 0:00:04.9]}
105... Ke6 {[%clk 0:00:04.7]} 106. Kd8 {[%clk 0:00:05.2]} 106... Kf6 {[%clk
0:00:04.5]} 107. Kc8 {[%clk 0:00:04.7]} 107... Ra8+ {[%clk 0:00:04.3]} 108. Kb7
{[%clk 0:00:04.4]} 108... Rf8 {[%clk 0:00:04.8]} 109. Kc6 {[%clk 0:00:05.3]}
109... Rg8 {[%clk 0:00:04.5]} 110. Kd5 {[%clk 0:00:05.6]} 110... Rd8+ {[%clk
0:00:04.6]} 111. Ke4 {[%clk 0:00:06]} 111... Re8+ {[%clk 0:00:05.3]} 112. Kf4
{[%clk 0:00:06.7]} 112... Rg8 {[%clk 0:00:05.8]} 113. Kg4 {[%clk 0:00:07.2]}
113... Rd8 {[%clk 0:00:05.3]} 114. Kf3 {[%clk 0:00:07.5]} 114... Rg8 {[%clk
0:00:05]} 115. Ke4 {[%clk 0:00:08.4]} 115... Re8+ {[%clk 0:00:04.5]} 116. Kd5
{[%clk 0:00:09.3]} 116... Rd8+ {[%clk 0:00:04.4]} 117. Kc6 {[%clk 0:00:10.2]}
117... Re8 {[%clk 0:00:04.5]} 118. Kd7 {[%clk 0:00:10.8]} 118... Re7+ {[%clk
0:00:04.7]} 119. Kd6 {[%clk 0:00:10.7]} 119... Ra7 {[%clk 0:00:04.8]} 120. h6
{[%clk 0:00:10.1]} 120... Kxg6 {[%clk 0:00:04.8]} 121. Rxg7+ {[%clk 0:00:09.2]}
121... Rxg7 {[%clk 0:00:04.9]} 122. hxg7 {[%clk 0:00:10.1]} 122... Kxg7 {[%clk
0:00:05.1]} 1/2-1/2

[Event "Late-Titled-Tuesday-Blitz-April-23-2024"]
[Site "Chess.com"]
[Date "2024.04.23"]
[Round "7"]
[White "kylelancman"]
[Black "Aygehovit1992"]
[Result "0-1"]
[WhiteElo "2489"]
[BlackElo "2716"]
[TimeControl "180+1"]
[EndTime "15:13:21 PDT"]
[Termination "Aygehovit1992 won by resignation"]

1. e4 {[%clk 0:03:00.9]} 1... c5 {[%clk 0:02:59.7]} 2. Nf3 {[%clk 0:03:00]} 2...
e6 {[%clk 0:03:00.2]} 3. c3 {[%clk 0:02:59.4]} 3... d5 {[%clk 0:03:00]} 4. exd5
{[%clk 0:02:59.7]} 4... Qxd5 {[%clk 0:03:00]} 5. d4 {[%clk 0:03:00.4]} 5... Nf6
{[%clk 0:03:00.1]} 6. Na3 {[%clk 0:02:59.8]} 6... a6 {[%clk 0:03:00.7]} 7. Nc4
{[%clk 0:02:58.8]} 7... Nbd7 {[%clk 0:03:01.4]} 8. Bf4 {[%clk 0:02:52.7]} 8...
b5 {[%clk 0:02:59.4]} 9. Nce5 {[%clk 0:02:52.2]} 9... Bb7 {[%clk 0:02:57.3]} 10.
a4 {[%clk 0:02:37.3]} 10... Qe4+ {[%clk 0:02:52.1]} 11. Be2 {[%clk 0:02:36.7]}
11... Qxf4 {[%clk 0:02:49]} 12. a5 {[%clk 0:02:28.3]} 12... cxd4 {[%clk
0:02:47.6]} 13. cxd4 {[%clk 0:02:22.8]} 13... Bb4+ {[%clk 0:02:45.5]} 0-1

[Event "Late-Titled-Tuesday-Blitz-April-23-2024"]
[Site "Chess.com"]
[Date "2024.04.23"]
[Round "7"]
[White "theredking89"]
[Black "jinxy2009"]
[Result "1-0"]
[WhiteElo "2797"]
[BlackElo "2296"]
[TimeControl "180+1"]
[EndTime "15:13:21 PDT"]
[Termination "theredking89 won by resignation"]

1. Nf3 {[%clk 0:03:00.9]} 1... Nf6 {[%clk 0:02:59.8]} 2. c4 {[%clk 0:02:59.8]}
2... g6 {[%clk 0:02:59.3]} 3. Nc3 {[%clk 0:02:58]} 3... Bg7 {[%clk 0:02:59.3]}
4. e4 {[%clk 0:02:58]} 4... e5 {[%clk 0:02:59.4]} 5. g3 {[%clk 0:02:55.4]} 5...
d6 {[%clk 0:02:58.9]} 6. h3 {[%clk 0:02:54.7]} 6... O-O {[%clk 0:02:59.1]} 7.
Bg2 {[%clk 0:02:55.2]} 7... Nc6 {[%clk 0:02:59.3]} 8. O-O {[%clk 0:02:55.2]}
8... h6 {[%clk 0:02:46.4]} 9. Rb1 {[%clk 0:02:51.2]} 9... a5 {[%clk 0:02:43.9]}
10. a3 {[%clk 0:02:51.3]} 10... Nd7 {[%clk 0:02:42.8]} 11. b4 {[%clk 0:02:50.1]}
11... axb4 {[%clk 0:02:42.3]} 12. axb4 {[%clk 0:02:50.7]} 12... f5 {[%clk
0:02:39.3]} 13. Nh4 {[%clk 0:02:49.1]} 13... Qf6 {[%clk 0:02:32.5]} 14. Nd5
{[%clk 0:02:48.1]} 14... Qf7 {[%clk 0:02:29.9]} 15. Nxc7 {[%clk 0:02:47.7]}
15... Rb8 {[%clk 0:02:28.2]} 16. exf5 {[%clk 0:02:47.9]} 16... gxf5 {[%clk
0:02:27.1]} 17. Bd5 {[%clk 0:02:47.4]} 1-0

[Event "Late-Titled-Tuesday-Blitz-April-23-2024"]
[Site "Chess.com"]
[Date "2024.04.23"]
[Round "7"]
[White "Cuchulin"]
[Black "albayo"]
[Result "0-1"]
[WhiteElo "2210"]
[BlackElo "2555"]
[TimeControl "180+1"]
[EndTime "15:14:02 PDT"]
[Termination "albayo won by checkmate"]

1. d4 {[%clk 0:03:00.9]} 1... Nf6 {[%clk 0:02:59.9]} 2. Bf4 {[%clk 0:03:01]}
2... g6 {[%clk 0:03:00.3]} 3. Nc3 {[%clk 0:03:00.4]} 3... Bg7 {[%clk 0:03:00.9]}
4. e4 {[%clk 0:03:00.9]} 4... O-O {[%clk 0:03:00.9]} 5. Qd2 {[%clk 0:03:01.4]}
5... c5 {[%clk 0:03:01.4]} 6. dxc5 {[%clk 0:02:54.9]} 6... Qa5 {[%clk
0:02:52.4]} 7. O-O-O {[%clk 0:02:50.8]} 7... Na6 {[%clk 0:02:52.1]} 8. a3 {[%clk
0:02:47.6]} 8... Nxc5 {[%clk 0:02:52]} 9. f3 {[%clk 0:02:44.6]} 9... d6 {[%clk
0:02:50.3]} 10. Kb1 {[%clk 0:02:42.5]} 10... b5 {[%clk 0:02:45.1]} 11. Nxb5
{[%clk 0:02:40.6]} 11... Qb6 {[%clk 0:02:43]} 12. Be3 {[%clk 0:02:35.6]} 12...
a6 {[%clk 0:02:42.2]} 13. Nc3 {[%clk 0:02:34.5]} 13... Rb8 {[%clk 0:02:42.6]}
14. b4 {[%clk 0:02:29.2]} 14... Bd7 {[%clk 0:02:31.2]} 15. Bxc5 {[%clk
0:02:23.1]} 15... dxc5 {[%clk 0:02:30.6]} 16. Nd5 {[%clk 0:02:19.8]} 16... Nxd5
{[%clk 0:02:30.2]} 17. Qxd5 {[%clk 0:02:19.8]} 17... cxb4 {[%clk 0:02:30.1]} 18.
Qxd7 {[%clk 0:02:17]} 18... bxa3+ {[%clk 0:02:29.6]} 19. Kc1 {[%clk 0:02:17]}
19... Bh6+ {[%clk 0:02:29.1]} 20. Rd2 {[%clk 0:02:15]} 20... Qb1# {[%clk
0:02:28.9]} 0-1

[Event "Late-Titled-Tuesday-Blitz-April-23-2024"]
[Site "Chess.com"]
[Date "2024.04.23"]
[Round "7"]
[White "Sargsyan_Shant"]
[Black "samolo"]
[Result "1-0"]
[WhiteElo "2960"]
[BlackElo "2665"]
[TimeControl "180+1"]
[EndTime "15:15:39 PDT"]
[Termination "Sargsyan_Shant won by resignation"]

1. c4 {[%clk 0:03:00.6]} 1... Nf6 {[%clk 0:02:57.5]} 2. Nc3 {[%clk 0:03:00.7]}
2... d6 {[%clk 0:02:58.2]} 3. d4 {[%clk 0:03:00.4]} 3... e5 {[%clk 0:02:58.5]}
4. Nf3 {[%clk 0:03:00.5]} 4... e4 {[%clk 0:02:58.9]} 5. Ng5 {[%clk 0:03:00.9]}
5... Qe7 {[%clk 0:02:58.9]} 6. Qc2 {[%clk 0:03:00.4]} 6... Bf5 {[%clk
0:02:58.2]} 7. g3 {[%clk 0:02:51.5]} 7... h6 {[%clk 0:02:56.6]} 8. Nh3 {[%clk
0:02:51.5]} 8... c6 {[%clk 0:02:53.7]} 9. Bg2 {[%clk 0:02:52]} 9... g5 {[%clk
0:02:43.5]} 10. e3 {[%clk 0:02:44]} 10... Qe6 {[%clk 0:02:37.3]} 11. d5 {[%clk
0:02:39]} 11... cxd5 {[%clk 0:02:31.2]} 12. cxd5 {[%clk 0:02:39.9]} 12... Nxd5
{[%clk 0:02:31]} 13. Nxd5 {[%clk 0:02:35]} 13... Qxd5 {[%clk 0:02:30.9]} 14. Bd2
{[%clk 0:02:35.9]} 14... Bg7 {[%clk 0:02:27.6]} 15. Rd1 {[%clk 0:02:29.4]} 15...
O-O {[%clk 0:02:23.9]} 16. Bc3 {[%clk 0:02:22.8]} 16... Qe6 {[%clk 0:02:06.4]}
17. Ng1 {[%clk 0:02:21.1]} 17... Bxc3+ {[%clk 0:02:00.6]} 18. bxc3 {[%clk
0:02:21]} 18... Nc6 {[%clk 0:02:00.2]} 19. Ne2 {[%clk 0:02:21.4]} 19... Rac8
{[%clk 0:01:45.5]} 20. O-O {[%clk 0:02:21.5]} 20... Nb4 {[%clk 0:01:41.9]} 21.
Qd2 {[%clk 0:02:18.7]} 21... Nd3 {[%clk 0:01:39.7]} 22. Nd4 {[%clk 0:02:19.3]}
22... Qg6 {[%clk 0:01:40.1]} 23. Nxf5 {[%clk 0:02:19.7]} 23... Qxf5 {[%clk
0:01:41]} 24. Bxe4 {[%clk 0:02:20.5]} 24... Qxe4 {[%clk 0:01:40.4]} 25. Qxd3
{[%clk 0:02:20.9]} 25... Qxd3 {[%clk 0:01:41.1]} 26. Rxd3 {[%clk 0:02:21.8]}
26... Rc6 {[%clk 0:01:41.7]} 27. Rfd1 {[%clk 0:02:21.1]} 27... Rfc8 {[%clk
0:01:41.1]} 28. Rxd6 {[%clk 0:02:19]} 28... Kg7 {[%clk 0:01:37]} 29. Rd7 {[%clk
0:02:19.2]} 29... Rxc3 {[%clk 0:01:30.3]} 30. Rxb7 {[%clk 0:02:19]} 30... Ra3
{[%clk 0:01:29.7]} 31. Rdd7 {[%clk 0:02:18.1]} 31... Rf8 {[%clk 0:01:28.2]} 32.
Rxa7 {[%clk 0:02:18.3]} 1-0

[Event "Late-Titled-Tuesday-Blitz-April-23-2024"]
[Site "Chess.com"]
[Date "2024.04.23"]
[Round "7"]
[White "MKlose11"]
[Black "szachmistrz2500"]
[Result "1-0"]
[WhiteElo "2607"]
[BlackElo "2457"]
[TimeControl "180+1"]
[EndTime "15:15:42 PDT"]
[Termination "MKlose11 won by resignation"]

1. e4 {[%clk 0:03:00.9]} 1... e6 {[%clk 0:02:57]} 2. d4 {[%clk 0:03:00.7]} 2...
d5 {[%clk 0:02:57.1]} 3. Nc3 {[%clk 0:02:54]} 3... Nf6 {[%clk 0:02:54.3]} 4. Bg5
{[%clk 0:02:46]} 4... Be7 {[%clk 0:02:50.2]} 5. e5 {[%clk 0:02:40.8]} 5... Nfd7
{[%clk 0:02:50.1]} 6. Bxe7 {[%clk 0:02:39.7]} 6... Qxe7 {[%clk 0:02:49.5]} 7.
Nce2 {[%clk 0:02:40.4]} 7... c5 {[%clk 0:02:47.3]} 8. c3 {[%clk 0:02:40.6]} 8...
Nc6 {[%clk 0:02:45]} 9. Nf3 {[%clk 0:02:40.7]} 9... f6 {[%clk 0:02:41.9]} 10.
exf6 {[%clk 0:02:39.4]} 10... Nxf6 {[%clk 0:02:41.9]} 11. Ng3 {[%clk 0:02:39.2]}
11... e5 {[%clk 0:02:40.2]} 12. dxe5 {[%clk 0:02:35.4]} 12... Nxe5 {[%clk
0:02:40.4]} 13. Nxe5 {[%clk 0:02:36]} 13... Qxe5+ {[%clk 0:02:40.4]} 14. Qe2
{[%clk 0:02:32.9]} 14... Qxe2+ {[%clk 0:02:34.7]} 15. Bxe2 {[%clk 0:02:33.8]}
15... Be6 {[%clk 0:02:24]} 16. O-O-O {[%clk 0:02:33.7]} 16... O-O-O {[%clk
0:02:18.6]} 17. Rhe1 {[%clk 0:02:33.7]} 17... Rhe8 {[%clk 0:02:17.7]} 18. Bf3
{[%clk 0:02:32.4]} 18... Kc7 {[%clk 0:02:16.5]} 19. h3 {[%clk 0:02:29.2]} 19...
g6 {[%clk 0:02:13.6]} 20. Ne2 {[%clk 0:02:29]} 20... g5 {[%clk 0:02:08.5]} 21.
Ng3 {[%clk 0:02:28.4]} 21... b5 {[%clk 0:01:38.5]} 22. Re5 {[%clk 0:02:16.3]}
22... h6 {[%clk 0:01:38.1]} 23. Nh5 {[%clk 0:02:14.8]} 23... Nd7 {[%clk
0:01:30]} 24. Re2 {[%clk 0:02:08.5]} 24... Bf7 {[%clk 0:01:22.4]} 25. Rxe8
{[%clk 0:02:02.6]} 25... Rxe8 {[%clk 0:01:22.6]} 26. Ng7 {[%clk 0:02:02.9]}
26... Rg8 {[%clk 0:01:21.3]} 27. Nf5 {[%clk 0:02:02.7]} 27... Nf6 {[%clk
0:01:19.9]} 28. Nxh6 {[%clk 0:02:01.7]} 28... Re8 {[%clk 0:01:18.8]} 29. Nxf7
{[%clk 0:02:01.2]} 1-0

[Event "Late-Titled-Tuesday-Blitz-April-23-2024"]
[Site "Chess.com"]
[Date "2024.04.23"]
[Round "7"]
[White "vi_pranav"]
[Black "alexrustemov"]
[Result "1-0"]
[WhiteElo "3072"]
[BlackElo "2845"]
[TimeControl "180+1"]
[EndTime "15:15:56 PDT"]
[Termination "vi_pranav won by checkmate"]

1. e4 {[%clk 0:03:00.9]} 1... e6 {[%clk 0:02:59.8]} 2. d4 {[%clk 0:03:00.3]}
2... d5 {[%clk 0:03:00.3]} 3. exd5 {[%clk 0:03:00.9]} 3... exd5 {[%clk
0:03:00.2]} 4. h3 {[%clk 0:03:01.8]} 4... Nc6 {[%clk 0:02:59.5]} 5. Nf3 {[%clk
0:03:02.1]} 5... Bd6 {[%clk 0:02:57.5]} 6. Bd3 {[%clk 0:03:02.2]} 6... Nge7
{[%clk 0:02:57.3]} 7. O-O {[%clk 0:03:02.2]} 7... Bf5 {[%clk 0:02:56.9]} 8. Bxf5
{[%clk 0:02:57.4]} 8... Nxf5 {[%clk 0:02:57.8]} 9. Re1+ {[%clk 0:02:58]} 9...
Nfe7 {[%clk 0:02:56.3]} 10. b3 {[%clk 0:02:56.8]} 10... O-O {[%clk 0:02:51.3]}
11. c4 {[%clk 0:02:56.7]} 11... dxc4 {[%clk 0:02:38.5]} 12. bxc4 {[%clk
0:02:57.6]} 12... Ng6 {[%clk 0:02:38.1]} 13. Nc3 {[%clk 0:02:55.7]} 13... b6
{[%clk 0:02:27]} 14. Bg5 {[%clk 0:02:52.7]} 14... Qd7 {[%clk 0:02:25]} 15. c5
{[%clk 0:02:48.2]} 15... Bf4 {[%clk 0:02:12.2]} 16. d5 {[%clk 0:02:33.4]} 16...
Na5 {[%clk 0:02:11.7]} 17. c6 {[%clk 0:02:31.3]} 17... Qf5 {[%clk 0:02:09.5]}
18. Bxf4 {[%clk 0:02:25]} 18... Nxf4 {[%clk 0:02:08.6]} 19. Re5 {[%clk
0:02:25.4]} 19... Qg6 {[%clk 0:02:04.6]} 20. Rg5 {[%clk 0:02:21.6]} 20... Qd6
{[%clk 0:01:49]} 21. Qd2 {[%clk 0:02:12.7]} 21... Ng6 {[%clk 0:01:38.5]} 22. h4
{[%clk 0:02:07.7]} 22... h6 {[%clk 0:01:32.4]} 23. Rg4 {[%clk 0:02:07.3]} 23...
Kh8 {[%clk 0:01:27.1]} 24. h5 {[%clk 0:01:48.8]} 24... Ne5 {[%clk 0:01:26.2]}
25. Nxe5 {[%clk 0:01:49.1]} 25... Qxe5 {[%clk 0:01:26.8]} 26. Re1 {[%clk
0:01:49.3]} 26... Qxh5 {[%clk 0:01:23.2]} 27. Qd4 {[%clk 0:01:49.2]} 27... Rad8
{[%clk 0:01:12.7]} 28. Qxg7# {[%clk 0:01:48.6]} 1-0

[Event "Late-Titled-Tuesday-Blitz-April-23-2024"]
[Site "Chess.com"]
[Date "2024.04.23"]
[Round "7"]
[White "PavlovDanila"]
[Black "ChessBrainiacOnTwitch"]
[Result "1-0"]
[WhiteElo "2616"]
[BlackElo "2787"]
[TimeControl "180+1"]
[EndTime "15:16:00 PDT"]
[Termination "PavlovDanila won by resignation"]

1. e4 {[%clk 0:02:53.9]} 1... c5 {[%clk 0:02:59.9]} 2. Nf3 {[%clk 0:02:44]} 2...
d6 {[%clk 0:02:58.9]} 3. d4 {[%clk 0:02:44.3]} 3... cxd4 {[%clk 0:02:59.8]} 4.
Nxd4 {[%clk 0:02:45.2]} 4... Nf6 {[%clk 0:03:00.2]} 5. Nc3 {[%clk 0:02:45.8]}
5... a6 {[%clk 0:03:00.4]} 6. Be3 {[%clk 0:02:46.1]} 6... e6 {[%clk 0:02:59.5]}
7. f4 {[%clk 0:02:45.9]} 7... Nbd7 {[%clk 0:02:59.4]} 8. Qf3 {[%clk 0:02:46.5]}
8... Qc7 {[%clk 0:02:59.5]} 9. g4 {[%clk 0:02:44.7]} 9... b5 {[%clk 0:02:59.9]}
10. g5 {[%clk 0:02:44.7]} 10... b4 {[%clk 0:02:53.1]} 11. gxf6 {[%clk
0:02:44.6]} 11... bxc3 {[%clk 0:02:52.2]} 12. fxg7 {[%clk 0:02:45]} 12... Bxg7
{[%clk 0:02:48.1]} 13. b3 {[%clk 0:02:44.3]} 13... Bb7 {[%clk 0:02:45.5]} 14.
Bg2 {[%clk 0:02:41.4]} 14... Nc5 {[%clk 0:02:41]} 15. Qh5 {[%clk 0:02:40.5]}
15... Bxe4 {[%clk 0:02:33.8]} 16. Bxe4 {[%clk 0:02:39.5]} 16... Nxe4 {[%clk
0:02:34.7]} 17. Nxe6 {[%clk 0:02:39.1]} 17... Qe7 {[%clk 0:01:15.2]} 18. Nxg7+
{[%clk 0:02:37.6]} 18... Kf8 {[%clk 0:01:13.9]} 19. Nf5 {[%clk 0:02:33.9]} 19...
Qe6 {[%clk 0:00:57.8]} 20. O-O-O {[%clk 0:02:32]} 20... Re8 {[%clk 0:00:53.2]}
21. Nxd6 {[%clk 0:02:15.3]} 21... Nxd6 {[%clk 0:00:46.8]} 22. Bc5 {[%clk
0:02:15.4]} 22... Rd8 {[%clk 0:00:46.9]} 23. Qe5 {[%clk 0:02:14.8]} 23... Ke7
{[%clk 0:00:41.8]} 24. Rxd6 {[%clk 0:02:14.2]} 1-0